Cogmind - Beta 13 @@@ ROGUE MODE // 2024.04.08 @ 22:16:18 Player: Gasoline_Joe Result: Destroyed by H-55 Commando with Assault Rifle Performance ------------- Evolutions (3) 1500 Regions Visited (5) 1000 Robots Destroyed (46) 230 Value Destroyed (1564) 1564 Prototype IDs (1) 20 Alien Tech Used (0) 0 Bonus (0) 0 TOTAL SCORE: 4314 Bonus ------- None Cogmind --------- Core Integrity 0/700 Matter 141/300 Energy 100/100 System Corruption 8% Temperature Cool (0) Movement Core (700) Ox13 Location -7/Factory Parts ------- > --- POWER (2) -------- (None) > --- PROPULSION (3) --- (None) > --- UTILITY (5) ------ High-capacity Storage Unit > --- WEAPON (3) ------- (None) > --- INVENTORY (20) --- Light Deuterium Engine Aluminum Leg Aluminum Leg Aluminum Leg Large Storage Unit Large Storage Unit Huge Storage Unit Improved Light Armor Plating Lightning Gun Beam Rifle Particle Gun High-powered Shotgun Flak Cannon Grenade Launcher Mini Grenade Launcher Peak State ------------ > --- POWER ------------ Light Deuterium Engine Light Nuclear Core > --- PROPULSION ------- Aluminum Leg Aluminum Leg Carbon-fiber Leg > --- UTILITY ---------- Heat Sink Improved Heat Sink Large Storage Unit Weight Redist. System Seismic Detector > --- WEAPON ----------- Lightning Gun Beam Rifle Improved Medium Laser > --- INVENTORY -------- Light Deuterium Engine Aluminum Leg Aluminum Leg Aluminum Leg Large Storage Unit High-capacity Storage Unit Huge Storage Unit Improved Light Armor Plating Particle Gun High-powered Shotgun Flak Cannon Advanced Assault Cannon Gauss Cannon Grenade Launcher Mini Grenade Launcher [Rating: 31] Favorites ----------- Power Ion Engine Engine Ion Engine Power Core Light Nuclear Core Propulsion Aluminum Leg Leg Aluminum Leg Utility Large Storage Unit Device Heat Sink Storage Large Storage Unit Protection Improved Light Armor Plating Weapon Medium Laser Energy Gun Medium Laser Ballistic Gun High-powered Shotgun Ballistic Cannon Flak Cannon Launcher Grenade Launcher Build | -11 -10 -9 -9 -8 -7 ------- Run | Yrd Mat Mat Min Mat Fac Slots Evolved 6 | . . 2 . 2 2 Power 1 | . . . . . 1 Propulsion 1 | . . 1 . . . Utility 3 | . . 1 . 1 1 Weapon 1 | . . . . 1 . Parts Attached 65 | 6 4 11 10 17 17 Power 8 | 1 1 1 1 2 2 Engine 7 | 1 1 1 1 2 1 Core 1 | . . . . . 1 Reactor . | . . . . . . Propulsion 16 | 2 1 3 4 5 1 Treads . | . . . . . . Leg 16 | 2 1 3 4 5 1 Wheel . | . . . . . . Hover . | . . . . . . Flight . | . . . . . . Utility 14 | 1 1 3 2 2 5 Device 10 | . . 3 2 2 3 Storage 3 | 1 1 . . . 1 Processor . | . . . . . . Hackware . | . . . . . . Protection 1 | . . . . . 1 Artifact . | . . . . . . Weapon 27 | 2 1 4 3 8 9 Energy Gun 16 | 1 . 4 2 1 8 Energy Cannon . | . . . . . . Ballistic Gun 7 | 1 1 . . 5 . Ballistic Cannon 3 | . . . . 2 1 Launcher 1 | . . . 1 . . Special Weapon . | . . . . . . Impact Weapon . | . . . . . . Slashing Weapon . | . . . . . . Piercing Weapon . | . . . . . . Special Melee Weapon . | . . . . . . Unidentified Prototypes 1 | . . . . . 1 Parts Lost 40 | . 4 4 4 15 13 Power 6 | . 1 1 . 2 2 Propulsion 13 | . 1 2 2 5 3 Utility 9 | . . . 2 2 5 Weapon 12 | . 2 1 . 6 3 Highest Loss Streak 12 | . 3 3 1 5 12 To Critical Strikes . | . . . . . . Average Slot Usage (%) 92 | . 88 93 97 91 91 Engine 9 | . 14 10 11 7 6 Leg 27 | . 27 32 32 25 22 Device 20 | . . 17 20 25 26 Storage 11 | . 23 11 11 9 7 Energy Gun 12 | . . 22 20 4 19 Ballistic Gun 6 | . 21 . . 11 . Ballistic Cannon 2 | . . . . 7 2 Naked Turns . | . . . . . . Heaviest Build 44 | 11 31 32 32 40 44 Greatest Support 41 | 20 20 30 30 30 41 Greatest Overweight (x) 13 | . 2 3 1 1 13 Average Overweight (x) . | . . . . 1 1 Largest Inventory Capacity 20 | 8 15 15 15 15 20 Average Capacity 14 | 7 12 15 15 15 15 Most Carried 15 | 5 11 15 15 15 15 Average Carried 11 | 3 8 11 14 10 14 Final Capacity 20 | 8 15 15 15 15 20 Final Carried 15 | 5 11 15 13 14 15 Class Distribution -------------------- 40% | Scavenger-Mutant 25% | Scavenger-Skirmisher 19% | Mutant 11% | Scavenger-Gunner 3% | Skirmisher Dominant Class ---------------- Mutant | -10/Materials Scavenger-Mutant | -9/Materials Scavenger-Mutant | -9/Mines Scavenger-Skirmisher | -8/Materials Scavenger-Gunner | -7/Factory Resources | -11 -10 -9 -9 -8 -7 ----------- Run | Yrd Mat Mat Min Mat Fac Matter Collected 1331 | 265 184 99 100 542 141 Remotely . | . . . . . . Salvage Created 1792 | 87 330 332 174 719 150 Parts 91 | 2 17 18 3 42 9 Haulers Intercepted 1 | . . . . . 1 Recyclers Shooed 3 | . 2 1 . . . Parts Field Recycled . | . . . . . . Retrieved Matter . | . . . . . . Parts Self-Destructed . | . . . . . . Prevented . | . . . . . . Kills | -11 -10 -9 -9 -8 -7 ------- Run | Yrd Mat Mat Min Mat Fac Combat Hostiles Destroyed 46 | . 6 8 9 21 2 Guns 38 | . 6 7 9 14 2 Cannons 7 | . . . . 7 . Classes Destroyed 10 | 1 1 . 1 5 2 Worker 1 | . . . . . 1 Builder 1 | . . . . 1 . Hauler 1 | . . . . . 1 Recycler 3 | 1 1 . . 1 . Watcher 1 | . . . . 1 . Swarmer 4 | . . . . 4 . Grunt 31 | . 6 8 2 13 2 Duelist 1 | . . . . 1 . Sentry 3 | . . . . 3 . Assembled 7 | . . . 7 . . Best Kill Streak 5 | 1 2 3 3 5 3 Combat Bots Only 5 | . 2 3 3 5 2 Max Kills in Single Turn 2 | 1 1 1 1 2 1 Gunslinging . | . . . . . . Exploded . | . . . . . . Melee . | . . . . . . Uniques/NPCs Destroyed . | . . . . . . Combat | -11 -10 -9 -9 -8 -7 -------- Run | Yrd Mat Mat Min Mat Fac Hostile Shots Fired 482 | . 61 33 54 141 193 Missed 151 | . 12 8 15 45 71 Damage Taken 4680 | . 639 325 505 1549 1662 Core 1242 | . 144 38 62 296 702 Absorbed by Shields . | . . . . . . Core Remaining (%) 65 | 100 42 . 75 46 . Volleys Fired 174 | 5 48 25 28 60 8 Largest 3 | 2 2 2 2 3 3 Hottest 176 | 70 40 100 100 140 176 Shots Fired 378 | 10 85 49 56 154 24 Gun 317 | 10 85 49 56 93 24 Cannon 61 | . . . . 61 . Launcher . | . . . . . . Special . | . . . . . . Kinetic 215 | 5 85 . . 125 . Thermal 137 | 5 . 38 56 19 19 Explosive . | . . . . . . Electromagnetic 26 | . . 11 . 10 5 Robot Hit Streak 13 | 4 10 13 11 8 8 Robot Miss Streak 10 | 2 2 3 4 10 3 Penetration Max . | . . . . . . Secondary Targets 1 | . . . 1 . . Max Gunslinging Chain 1 | . . . 1 . . Shots Hit Robots 264 | 6 61 38 38 107 14 Core Hits 134 | 2 20 17 20 67 8 Critical Kills 1 | . . . . 1 . Critical Parts Destroyed . | . . . . . . Critical Strikes 8 | . . 4 1 2 1 Burn 7 | . . 4 1 1 1 Destroy 1 | . . . . 1 . Melee Attacks . | . . . . . . Impact . | . . . . . . Slashing . | . . . . . . Piercing . | . . . . . . Sneak Attacks . | . . . . . . Combat Hostiles . | . . . . . . Follow-up Attacks . | . . . . . . Damage Inflicted 3613 | 69 591 513 473 1686 281 Guns 2981 | 69 591 513 473 1054 281 Cannons 564 | . . . . 564 . Explosions 68 | . . . . 68 . Melee . | . . . . . . Ramming . | . . . . . . Kinetic 2003 | 18 591 . . 1394 . Thermal 1284 | 51 . 366 473 194 200 Explosive . | . . . . . . Electromagnetic 326 | . . 147 . 98 81 Impact . | . . . . . . Slashing . | . . . . . . Piercing . | . . . . . . Highest Corruption 8 | . . . 3 . 8 Average Corruption 3 | . . . 3 . 4 Corruption Purged . | . . . . . . Corruption Blocked . | . . . . . . Effects 2 | . . . 2 . . Message Errors 1 | . . . 1 . . Energy Discharges 1 | . . . 1 . . Overload Shots . | . . . . . . Overflow Damage 39 | . . . . 39 . Projectiles . | . . . . . . Explosions 39 | . . . . 39 . Melee . | . . . . . . Knockbacks 29 | . . . . 29 . Impact . | . . . . . . Kinetic 25 | . . . . 25 . Secondary 4 | . . . . 4 . Self-Inflicted Damage 40 | . . . . 40 . Shots 1 | . . . . 1 . Rammed . | . . . . . . Targets Rammed . | . . . . . . Kicked . | . . . . . . Crushed . | . . . . . . Highest Temperature 310 | 90 18 238 210 310 195 Average Temperature 72 | 45 7 106 60 93 86 Received Heat Transfer 1489 | . 360 201 121 693 114 Effects 1 | . . 1 . . . Energy Bleed 1 | . . 1 . . . Siege Activations . | . . . . . . Robots Corrupted . | . . . . . . Combat Hostiles . | . . . . . . Parts Fried . | . . . . . . Impact Corruptions . | . . . . . . Robots Melted 1 | . . 1 . . . Combat Hostiles 1 | . . 1 . . . Parts Melted 7 | . . 4 2 1 . Heat Transferred 3824 | 148 . 1369 1480 494 333 Parts Sabotaged . | . . . . . . Parts Stolen . | . . . . . . Parts Stripped . | . . . . . . Power Chain Reactions 1 | . . . . 1 . Alert | -11 -10 -9 -9 -8 -7 ------- Run | Yrd Mat Mat Min Mat Fac Peak Influence 373 | 5 168 221 86 373 170 Initial 133 | . 3 70 31 . 133 Average 124 | . 78 131 55 201 96 Maximum Alert Level 1 | . . 1 . 1 . Low Security (%) 73 | 100 100 66 100 35 100 Level 1 26 | . . 33 . 64 . Level 2 . | . . . . . . Level 3 . | . . . . . . Level 4 . | . . . . . . Level 5 . | . . . . . . High Security . | . . . . . . Max Security . | . . . . . . Squads Dispatched 9 | . . 5 . 4 . Investigation 4 | . . 3 . 1 . Extermination . | . . . . . . Reinforcement 3 | . . 2 . 1 . Assault . | . . . . . . Garrison 2 | . . . . 2 . Intercept . | . . . . . . Searches Triggered . | . . . . . . Construction Impeded . | . . . . . . Haulers Reinforced . | . . . . . . Active Scanning Responses . | . . . . . . Cargo Convoy Interrupts 1 | . . . . . 1 Stealth | -11 -10 -9 -9 -8 -7 --------- Run | Yrd Mat Mat Min Mat Fac Distress Signals 8 | . 3 1 . 4 . Communications Jammed . | . . . . . . Distress Signals . | . . . . . . Times Spotted 93 | . 12 13 17 34 17 Peak Tracking Total 13 | . 5 3 3 8 13 Tactical Retreats 10 | . 2 . 3 5 . Traps | -11 -10 -9 -9 -8 -7 ------- Run | Yrd Mat Mat Min Mat Fac Traps Triggered 3 | . . 1 . 1 1 Indirectly . | . . . . . . Trap Hack Attempts . | . . . . . . Triggered . | . . . . . . Disarmed . | . . . . . . Reprogrammed . | . . . . . . Reused . | . . . . . . Traps Extracted . | . . . . . . Installed . | . . . . . . Triggered . | . . . . . . Machines | -11 -10 -9 -9 -8 -7 ---------- Run | Yrd Mat Mat Min Mat Fac Machines Disabled . | . . . . . . Max in Single Turn . | . . . . . . Machines Repaired . | . . . . . . Machines Dismantled . | . . . . . . Machines Sabotaged . | . . . . . . Overloaded Fab Kills . | . . . . . . Hacking | -11 -10 -9 -9 -8 -7 --------- Run | Yrd Mat Mat Min Mat Fac Machines Accessed 5 | . 2 2 . 1 . Terminals 4 | . 2 1 . 1 . Fabricators . | . . . . . . Repair Stations . | . . . . . . Recycling Units . | . . . . . . Scanalyzers 1 | . . 1 . . . Garrison Access . | . . . . . . Total Hacks 18 | . 5 11 . 2 . Successful 8 | . . 7 . 1 . Failed 9 | . 5 4 . . . Catastrophic 1 | . . 1 . . . Database Lockouts 1 | . . . . 1 . Manual 9 | . 3 2 . 4 . Terminals 11 | . 5 4 . 2 . Fabricators . | . . . . . . Repair Stations . | . . . . . . Recycling Units . | . . . . . . Scanalyzers 7 | . . 7 . . . Garrison Access . | . . . . . . Terminal Hacks 2 | . . 1 . 1 . Robot Analysis 2 | . . 1 . 1 . Fabricator Hacks . | . . . . . . Repair Station Hacks . | . . . . . . Recycling Unit Hacks . | . . . . . . Scanalyzer 6 | . . 6 . . . Insert Component 3 | . . 3 . . . Analyze 3 | . . 3 . . . Garrison Access Hacks . | . . . . . . Unauthorized Hacks . | . . . . . . Terminals . | . . . . . . Fabricators . | . . . . . . Repair Stations . | . . . . . . Recycling Units . | . . . . . . Scanalyzers . | . . . . . . Garrison Access . | . . . . . . Data Cores Recovered . | . . . . . . Used . | . . . . . . Hacking Detections 5 | . 2 2 . 1 . Full Trace Events 3 | . . 2 . 1 . Feedback Events . | . . . . . . Feedback Blocked . | . . . . . . Robot Schematics Acquired . | . . . . . . Robots Built . | . . . . . . Authchips . | . . . . . . Time . | . . . . . . Total Robot Build Rating . | . . . . . . Part Schematics Acquired 3 | . . 3 . . . Parts Built . | . . . . . . Authchips . | . . . . . . Time . | . . . . . . Total Part Build Rating . | . . . . . . Parts Repaired . | . . . . . . Time . | . . . . . . Parts Recycled . | . . . . . . Recycled Matter . | . . . . . . Retrieved Matter . | . . . . . . Retrieved Components . | . . . . . . Parts Scanalyzed 3 | . . 3 . . . Part Schematics Acquired 3 | . . 3 . . . Parts Damaged . | . . . . . . Bothacking | -11 -10 -9 -9 -8 -7 ------------ Run | Yrd Mat Mat Min Mat Fac Used RIF Installer . | . . . . . . Robots Hacked . | . . . . . . Non-combat . | . . . . . . Combat . | . . . . . . Robot Hacks Applied . | . . . . . . Relay Couplers Released . | . . . . . . Fabnet Peak Effective % . | . . . . . . Robots Rewired . | . . . . . . Allies Hacked . | . . . . . . Hacks Repelled . | . . . . . . Allies | -11 -10 -9 -9 -8 -7 -------- Run | Yrd Mat Mat Min Mat Fac Total Allies . | . . . . . . Largest Group . | . . . . . . Highest-Rated Group . | . . . . . . Highest-Rated Ally . | . . . . . . Total Orders . | . . . . . . Ally Attacks . | . . . . . . Total Damage . | . . . . . . Kills . | . . . . . . Allies Corrupted . | . . . . . . Allies Melted . | . . . . . . Intel | -11 -10 -9 -9 -8 -7 ------- Run | Yrd Mat Mat Min Mat Fac Robot Analysis Total 2 | . . 1 . 1 . Derelict Logs Recovered 2 | . . . 2 . . Drone Launches . | . . . . . . Drone Recoveries . | . . . . . . Exploration | -11 -10 -9 -9 -8 -7 ------------- Run | Yrd Mat Mat Min Mat Fac Turns Passed 2999 | 82 358 538 482 939 600 Spaces Moved 1193 | 51 123 217 249 338 215 Core 18 | 13 . . . . 5 Treads . | . . . . . . Legs 1175 | 38 123 217 249 338 210 Wheels . | . . . . . . Hover . | . . . . . . Flight . | . . . . . . Fastest Speed 50 | 50 120 120 120 190 120 Average Speed 168 | 102 163 166 136 190 194 Slowest Speed 700 | 120 260 330 190 190 700 Overloaded Moves . | . . . . . . Propulsion Burnouts . | . . . . . . Robots Hopped . | . . . . . . Cave-ins Triggered . | . . . . . . Exploration Rate (%) 23 | 4 29 18 59 22 8 Regions Visited 5 Branch Regions 1 Pre-discovered Areas . | . . . . . . Known Exits Taken 1 | . . . . 1 . Unknown Exits Taken 4 | 1 1 1 1 . . Scrap Searched 2 | . . . 2 . . Spaces Dug . | . . . . . . Terrain Destroyed 2 | . . . . 2 . Melee . | . . . . . . Projectile . | . . . . . . AOE 2 | . . . . 2 . Terrain Rammed . | . . . . . . Walls Destroyed . | . . . . . . Machines Disabled . | . . . . . . Actions | -11 -10 -9 -9 -8 -7 --------- Run | Yrd Mat Mat Min Mat Fac Total 1845 | 71 205 346 334 507 382 Wait 338 | . 21 76 38 73 130 Move 1188 | 50 122 216 248 337 215 Hop . | . . . . . . Pick Up 66 | 10 9 15 5 19 8 Fast Attach 4 | 1 1 . . . 2 Attach 45 | 5 2 10 4 17 7 Detach 2 | . . . . . 2 Swap 16 | . 1 1 6 . 8 Drop 12 | . 1 3 5 1 2 Fire 174 | 5 48 25 28 60 8 Melee . | . . . . . . Ram . | . . . . . . Kick . | . . . . . . Crush . | . . . . . . Escape Stasis . | . . . . . . Rewire . | . . . . . . Trap . | . . . . . . Miscellaneous . | . . . . . . Route ------- -11/Scrapyard -10/Materials -9/Materials -9/Mines (discovered 2 exits: *Mat x2) -8/Materials (discovered 2 exits: *Fac / Sto) -7/Factory History --------- Turn | Location | Event 10 | -11/Scrapyard | Discovered new exit (range 16) 83 | -11/Scrapyard | Entered Materials 306 | -10/Materials | Build established: Mutant 359 | -10/Materials | Lost 3 parts (1p1n1w) 365 | -10/Materials | Core integrity fell below 50% 418 | -10/Materials | Discovered new exit (range 12) 441 | -10/Materials | Entered another Materials area 441 | -9/Materials | Evolved 2 slots: Propulsion x1, Utility x1 691 | -9/Materials | Lost 3 parts (2n1w) 858 | -9/Materials | Build established: Scavenger-Mutant 913 | -9/Materials | Discovered new exit (range 14) 979 | -9/Materials | Entered Mines 1048 | -9/Mines | Assembled infested the area 1053 | -9/Mines | Assisted by a Guerilla fighting off Assembled 1091 | -9/Mines | Learned location of 1 exit from Materials 1280 | -9/Mines | Learned location of 1 exit from Materials 1435 | -9/Mines | Discovered new exit (range 10) 1445 | -9/Mines | Discovered new exit (range 13) 1461 | -9/Mines | Entered Materials 1461 | -8/Materials | Evolved 2 slots: Utility x1, Weapon x1 1462 | -8/Materials | Identified exit to Factory 1462 | -8/Materials | Identified exit to Storage 1619 | -8/Materials | Lost 4 parts (2n2w) 1739 | -8/Materials | Lost 5 parts (1p1n1u2w) 1806 | -8/Materials | Lost 3 parts (2n1w) 2181 | -8/Materials | Central database locked down 2213 | -8/Materials | Garrison activated, responded to threat 2231 | -8/Materials | Build established: Scavenger-Skirmisher 2256 | -8/Materials | Core integrity fell below 50% 2323 | -8/Materials | Lost 3 parts (1p1u1w) 2400 | -8/Materials | Entered Factory 2400 | -7/Factory | Evolved 2 slots: Power x1, Utility x1 2962 | -7/Factory | Build established: Scavenger-Gunner 2969 | -7/Factory | Cargo convoy interrupted 2993 | -7/Factory | Core integrity fell below 50% 2998 | -7/Factory | Core integrity fell below 20% 3000 | -7/Factory | Destroyed by H-55 Commando with Assault Rifle Last Messages --------------- 02982_ Carbon-fiber Leg destroyed. 02982_ Heat Sink destroyed. 02983_ P-60 Hacker resets X-67 Chaingunner, system corruption cleaned. 02984_ Lgt. Nuclear Core destroyed. 02985_ Penetrated by Slug. 02985_ Imp. Medium Laser destroyed. 02985_ Aluminum Leg destroyed. 02986_ Door malfunctions. 02988_ Imp. Medium Laser destroyed. 02988_ Penetrated by Slug. 02988_ Seismic Detector destroyed. 02988_ Lgt. Deuterium Engine destroyed. 02989_ Penetrated by Slug. 02989_ Imp. Heat Sink destroyed. 02991_ Penetrated by Slug. 02992_ Weight Redist. System destroyed. 02997_ Penetrated by Slug. 02997_ Slug penetrates Wall. 02999_ Penetrated by Slug. Map ----- +----------------------------------------------------+ | ?????????????????????????????????????????????????? | | ?????????????????????????????????????????????????? | | ?????????????????????????????????????????????????? | | ?????????????????????????????????????????????????? | | #############????????????????????????????????????? | | #????????????????????????????????????? | | #????????????????????????????????????? | | #????????????????????????????????????? | | #????????????????????????????????????? | | [ #????????????????????????????????????? | | #????????????? ?? ????????????????? | | #????????????# ? "??????? ???????? | | #????????????# ? ?????? #??????? | | #????????????# """ "????? #??????? | | #????????????# """ ""??? #??????? | | #????????????# """ ""?? #??????? | | #####?######## """" #??##??? | | #####+########T ### """" ## ?? | | """" ?? | | """" = ?? | | ^ %=" ? | | ph * %" ? | | xi p" " | | ^ h hY" | | p | | #####+############# u @ # ######??????? | | ???????????????########/############?????????????? | | ???????????????# #????????????????? | | ???????????????# #????????????????? | | ???????????????# #????????????????? | | ???????????????# """" """" """" #????????????????? | | ???????????????# """" """" """" #????????????????? | | ???????????????# """" """" """" #????????????????? | | ?????????????????"""" """" """" #????????????????? | | ???????????????# #????????????????? | | ???????????????# ] #????????????????? | | ???????????????##################????????????????? | | | | | | | | | | | | | | | | | | | | | | | | | | | +----------------------------------------------------+ Best States ------------- Heat Dissipation 58 Energy Generation 23 Energy Capacity 250 Matter Stores 300 Matter Capacity 300 Sight Range 16 Terrain Scan Range 14 Terrain Scan Density 10 Additional Mass Support 6 Evasion (%) 55 Item Schematics ----------------- Huge Storage Unit | -9/Materials | Scanalyzed Hcp. Storage Unit | -9/Materials | Scanalyzed Grenade Launcher | -9/Materials | Scanalyzed Robot Schematics ------------------ None Fabricated ------------ Nothing Alien Tech Used ----------------- None Achievements -------------- It's Just You More Dakka Please Challenges ------------ None Game ------ Seed ActivePlasmaInterpreter Manual? 0 Play Time 00:40:59 Cumulative 6.4 hours Start 2024.04.08 @ 21:31:23 End 2024.04.08 @ 22:16:18 Sessions 1 Manual Loads 0 Difficulty Rogue Special Mode None Game No. 6 Rogue 6 Adventurer 0 Explorer 0 Win Type - Total 0 Types 0/0/0/0/0/0/0/0/0 Lore% 6 Gallery% 9 Achievement% 12 Wizard Run 0 Options --------- Layout 1 ASCII 0 Keyboard 0 Movement Mouse Keybinds 0 Fullscreen 2 Font 24/Smallcaps Map View 50x35 Zoom Use 0% Tactical HUD 1 Map Filters NONE Filters NONE Steam 1 RUN: 0675f724-d41e-4aa2-a650-1f26c5f61a56